bitfinex/quotes_SOLUSD_20251007
["timestamp","ask_amount","ask_price","bid_price","bid_amount"]
[1759867724277,0.1,223.27,223.25,32.52]
[1759867724577,0.1,223.27,223.25,36.29926862]
[1759867725053,0.1,223.27,223.25,36.99926862]
[1759867725558,0.1,223.27,223.25,36.29926862]
[1759867725752,0.1,223.27,223.25,31.82]
[1759867725977,1.68255246,223.27,223.25,31.82]
[1759867727777,0.1,223.27,223.25,36.29926859]
[1759867728178,0.1,223.27,223.25,36.98926859]
[1759867728375,1.68255246,223.27,223.25,36.29926859]
[1759867728878,0.1,223.27,223.25,36.29926859]
[1759867729083,1.68255246,223.27,223.25,36.29926859]
[1759867729264,0.1,223.27,223.25,36.29926859]
[1759867729785,0.1,223.27,223.26,5.16908268]
[1759867730190,0.1,223.27,223.26,4.47908268]
[1759867731096,0.1,223.27,223.26,5.16908268]
[1759867733163,0.1,223.27,223.26,6.75163514]
[1759867734466,0.1,223.27,223.26,10.38569907]
[1759867735187,0.1,223.27,223.26,6.75163514]
[1759867736186,0.1,223.27,223.26,10.39976663]
[1759867736583,0.1,223.27,223.26,6.75163514]
[1759867737068,20.8,223.4,223.26,40.34475525]
[1759867737395,0.1,223.47,223.35,1.58255246]
[1759867737396,2.24255246,223.41,223.35,1.58255246]
[1759867737593,2.24255246,223.41,223.36,31.8]
[1759867737762,2.24255246,223.4,223.36,36.27702004]
[1759867737963,0.66,223.39,223.37,31.78]
[1759867738289,0.66,223.38,223.33,1.58255246]
[1759867738472,2.24255246,223.38,223.33,5.16767877]
[1759867738674,1.58255246,223.39,223.34,32.47]
[1759867738871,2.24255246,223.39,223.35,31.78]
[1759867739469,0.66,223.39,223.35,4.47727781]
[1759867739664,4.4760864,223.41,223.36,31.78]
[1759867739878,0.66,223.38,223.35,4.47727781]
[1759867740193,0.66,223.38,223.37,31.78]
[1759867740395,1.58255246,223.39,223.35,4.47727781]
[1759867740581,0.66,223.42,223.36,31.78]
[1759867740786,1.58255246,223.41,223.36,32.47]
[1759867740982,1.58255246,223.41,223.37,0.69]
[1759867741161,0.66,223.42,223.38,0.69]
[1759867741364,2.24255246,223.42,223.39,31.78]
[1759867741773,1.58255246,223.41,223.39,31.78]
[1759867741981,2.24255246,223.41,223.39,31.78]
[1759867743589,1.58255246,223.4,223.39,31.78]
[1759867743962,0.66,223.4,223.39,31.78]
[1759867744175,2.24255246,223.4,223.39,31.78]
[1759867744494,1.58255246,223.4,223.39,31.78]
[1759867744867,4.47568135,223.43,223.37,4.47687602]
[1759867745069,2.46941213,223.4,223.38,31.78]
[1759867745792,0.66,223.42,223.39,4.47647611]
[1759867746101,2.46941213,223.4,223.39,36.25647611]
[1759867746503,3.12941213,223.4,223.39,31.78]
[1759867746673,3.12941213,223.4,223.39,31.76]
[1759867747588,0.66,223.4,223.39,31.76]
[1759867747790,3.12941213,223.4,223.39,31.76]
[1759867747977,3.12941213,223.4,223.39,36.23647611]
[1759867748191,0.66,223.4,223.39,36.23647611]
[1759867748382,2.46941213,223.42,223.39,36.23647611]
[1759867748582,2.46941213,223.41,223.39,36.23647611]
[1759867748776,2.46941213,223.4,223.39,36.23647611]
[1759867749874,3.12941213,223.4,223.3,0.69]
[1759867750076,2.46941213,223.33,223.31,31.76]
[1759867750285,2.46941213,223.32,223.31,13.31201173]
[1759867750496,0.66,223.38,223.31,32.45]
[1759867750671,2.46941213,223.33,223.31,32.45]
[1759867750870,2.46941213,223.33,223.31,0.69]
[1759867751074,2.46941213,223.33,223.32,31.76]
[1759867751500,2.46941213,223.33,223.32,36.23787927]
[1759867751796,2.46941213,223.34,223.32,36.23787927]
[1759867752507,2.46941213,223.33,223.32,36.23787927]
[1759867752709,2.46941213,223.33,223.32,115.43787927]
[1759867754798,2.46941213,223.33,223.32,36.23787927]
[1759867757087,0.66,223.36,223.32,36.23787927]
[1759867757282,2.46941213,223.33,223.32,36.23787927]
[1759867757683,2.46941213,223.33,223.32,4.47787927]
[1759867757889,2.46941213,223.33,223.32,36.23787927]
[1759867759100,3.16941213,223.33,223.27,11.196816]
[1759867759283,2.46941213,223.29,223.28,31.76]
[1759867759685,2.46941213,223.31,223.28,36.92868147]
[1759867759884,2.46941213,223.31,223.28,36.23868147]
[1759867760281,3.16941213,223.31,223.28,36.23868147]
[1759867760476,2.46941213,223.31,223.28,36.23868147]
[1759867760681,2.46941213,223.32,223.28,36.92868147]
[1759867760899,0.7,223.33,223.28,36.92868147]
[1759867761098,2.46941213,223.31,223.28,36.92868147]
[1759867761693,0.7,223.33,223.28,47.43538516]
[1759867761893,3.16941213,223.33,223.29,0.69]
[1759867762100,3.16941213,223.33,223.3,31.76]
[1759867762386,2.46941213,223.32,223.3,31.76]
[1759867763105,2.46941213,223.32,223.3,36.23823114]
[1759867763303,20.8,223.37,223.31,31.76]
[1759867763498,2.46941213,223.32,223.31,31.76]
[1759867763898,3.16941213,223.32,223.31,31.76]
[1759867766300,0.7,223.32,223.31,31.76]
[1759867766624,2.46941213,223.32,223.31,31.76]
[1759867767091,0.7,223.34,223.31,31.76]
[1759867767410,2.46941213,223.32,223.31,31.76]
[1759867769010,2.46941213,223.32,223.31,36.23805723]
[1759867769210,0.7,223.33,223.31,36.23805723]
[1759867769403,2.46941213,223.32,223.31,36.23805723]
[1759867769602,2.46941213,223.32,223.31,31.76]
[1759867774007,2.46941213,223.32,223.29,5.16844943]
[1759867774222,2.46941213,223.31,223.3,31.74]
[1759867775712,0.7,223.32,223.3,31.74]
[1759867775911,2.46941213,223.31,223.3,31.74]
[1759867777701,3.16941213,223.31,223.3,31.74]
[1759867777906,3.16941213,223.31,223.26,0.69]
[1759867778106,4.47793892,223.32,223.26,0.69]
[1759867778107,2.46941213,223.28,223.27,31.74]
[1759867778423,5.17766595,223.34,223.27,32.43]
[1759867778625,2.46941213,223.31,223.28,0.69]
[1759867779120,2.46941213,223.3,223.29,31.74]
[1759867781023,2.46941213,223.3,223.28,36.90853423]
[1759867782002,2.46941213,223.3,223.28,36.21853423]
[1759867782411,3.14941213,223.3,223.28,36.21853423]
[1759867782612,2.46941213,223.3,223.28,36.21853423]
[1759867784026,2.46941213,223.3,223.28,36.91853423]
[1759867785628,2.46941213,223.3,223.28,36.21853423]
[1759867786235,2.46941213,223.3,223.28,36.91853423]
[1759867788307,0.68,223.32,223.28,36.91853423]
[1759867788507,2.46941213,223.33,223.29,0.72]
[1759867788709,2.46941213,223.33,223.3,31.72]
[1759867789012,2.46941213,223.33,223.31,0.72]
[1759867789212,2.46941213,223.33,223.32,0.72]
[1759867789423,2.46941213,223.33,223.3,32.44]
[1759867789632,2.46941213,223.34,223.31,0.72]
[1759867790008,3.70023929,223.37,223.32,0.72]
[1759867790235,2.46941213,223.34,223.32,0.72]
[1759867790430,2.46941213,223.35,223.32,36.91783453]
[1759867791434,2.46941213,223.4,223.34,2.46941213]
[1759867791645,2.46941213,223.4,223.35,32.44]
[1759867791813,2.46941213,223.4,223.36,0.72]
[1759867792137,2.46941213,223.41,223.37,32.44]
[1759867792438,2.46941213,223.41,223.38,0.72]
[1759867792618,2.46941213,223.4,223.37,36.19683596]
[1759867792825,5.48180569,223.43,223.38,0.72]
[1759867793032,0.1,223.47,223.39,31.72]
[1759867793333,2.46941213,223.46,223.4,3.18941213]
[1759867793633,2.46941213,223.46,223.41,32.44]
[1759867793852,2.46941213,223.46,223.42,0.72]
[1759867794041,2.46941213,223.46,223.43,32.44]
[1759867794213,2.46941213,223.46,223.44,31.72]
[1759867795333,0.1,223.47,223.44,31.72]
[1759867795533,2.46941213,223.46,223.44,31.72]
[1759867796036,3.15941213,223.46,223.44,31.72]
[1759867796626,0.1,223.47,223.45,0.72]
[1759867797017,0.1,223.47,223.44,31.72]
[1759867797336,0.1,223.47,223.44,32.44]
[1759867797914,0.1,223.47,223.44,31.72]
[1759867798123,0.1,223.47,223.45,0.72]
[1759867798428,0.1,223.47,223.44,31.72]
[1759867798626,0.1,223.47,223.44,32.44]
[1759867799018,2.56941213,223.47,223.44,32.44]
[1759867799719,7.04434911,223.47,223.44,31.72]
[1759867799920,7.04434911,223.47,223.45,0.72]
[1759867800240,7.04434911,223.47,223.44,31.72]
[1759867800422,7.04434911,223.47,223.44,32.44]
[1759867800617,7.04434911,223.47,223.44,31.72]
[1759867801125,7.04434911,223.47,223.44,32.44]
[1759867801637,2.46941213,223.46,223.41,0.72]
[1759867801822,2.46941213,223.44,223.42,0.72]
[1759867802023,3.15941213,223.43,223.32,131.9]
[1759867802331,2.46941213,223.36,223.34,0.72]
[1759867802546,2.46941213,223.35,223.32,0.72]
[1759867802834,2.46941213,223.34,223.33,31.7]
[1759867803338,2.46941213,223.34,223.3,0.72]
[1759867803553,2.46941213,223.31,223.28,0.72]
[1759867803713,2.46941213,223.3,223.25,4.47926081]
[1759867803914,2.46941213,223.3,223.26,32.42]
[1759867804115,2.46941213,223.32,223.27,0.72]
[1759867804335,3.15941213,223.33,223.28,0.72]
[1759867804848,4.47775006,223.33,223.29,3.18941213]
[1759867805141,4.47775006,223.33,223.3,0.72]
[1759867805343,4.47775006,223.33,223.29,0.72]
[1759867805543,4.47775006,223.33,223.28,1.58141396]
[1759867805749,4.47732906,223.43,223.3,1.58141396]
[1759867805916,0.69,223.41,223.36,1.58141396]
[1759867806115,0.69,223.41,223.36,33.28141396]
[1759867806316,0.69,223.41,223.37,0.72]
[1759867806516,0.69,223.41,223.36,33.28141396]
[1759867806839,0.69,223.41,223.36,34.00141396]
[1759867807037,5.16610427,223.41,223.36,34.00141396]
[1759867807540,6.74751823,223.41,223.36,32.42]
[1759867809252,6.74751823,223.41,223.36,111.62]
[1759867810055,15.66275842,223.46,223.36,110.9]
[1759867810353,0.69,223.45,223.38,1.58141396]
[1759867810646,1.58141396,223.44,223.39,0.72]
[1759867810823,2.27141396,223.44,223.38,1.58141396]
[1759867811022,2.27141396,223.44,223.38,79.92]
[1759867811220,1.58141396,223.43,223.38,79.92]
[1759867811431,4.47587503,223.42,223.39,0.72]
[1759867813115,4.4754744,223.44,223.39,0.72]
[1759867813314,2.27141396,223.43,223.39,0.72]
[1759867813743,1.58141396,223.41,223.39,0.72]
[1759867814143,1.58141396,223.41,223.37,79.2]
[1759867814440,1.58141396,223.41,223.38,0.72]
[1759867814650,1.58141396,223.41,223.39,32.42]
[1759867815145,1.58141396,223.41,223.4,0.72]
[1759867815357,1.58141396,223.41,223.39,31.7]
[1759867815528,1.58141396,223.41,223.39,32.42]
[1759867815843,0.69,223.45,223.4,0.72]
[1759867816018,1.58141396,223.42,223.41,0.72]
[1759867816541,1.58141396,223.42,223.39,36.89643041]
[1759867816729,1.58141396,223.41,223.4,0.72]
[1759867818029,1.58141396,223.41,223.39,36.17645347]
[1759867818233,1.58141396,223.42,223.39,36.89645347]
[1759867818552,5.17529821,223.45,223.4,0.72]
[1759867818843,1.58141396,223.42,223.4,0.72]
[1759867819842,0.7,223.44,223.4,0.72]
[1759867820149,1.58141396,223.42,223.4,0.72]
[1759867820854,0.7,223.44,223.39,36.17645347]
[1759867821028,1.58141396,223.42,223.39,36.89645347]
[1759867821224,0.1,223.47,223.39,36.17645347]
[1759867821428,1.58141396,223.42,223.4,0.72]
[1759867821623,1.58141396,223.42,223.41,0.72]
[1759867822043,1.58141396,223.42,223.39,36.89645347]
[1759867822349,1.58141396,223.42,223.4,0.72]
[1759867822758,1.58141396,223.42,223.4,5.19620794]
[1759867822943,1.58141396,223.42,223.4,4.47620794]
[1759867823833,0.7,223.44,223.4,4.47620794]
[1759867824131,1.58141396,223.41,223.4,4.47620794]
[1759867824332,1.58141396,223.42,223.4,4.47620794]
[1759867825152,1.58141396,223.42,223.41,0.72]
[1759867825358,0.7,223.46,223.41,0.72]
[1759867825662,2.28141396,223.45,223.41,0.72]
[1759867826163,2.28141396,223.45,223.41,5.19598743]
[1759867826342,2.28141396,223.45,223.41,4.47598743]
[1759867827259,0.7,223.44,223.39,116.09631766]
[1759867827467,2.28141396,223.43,223.39,110.9]
[1759867827634,2.28141396,223.42,223.39,110.9]
[1759867827833,0.7,223.41,223.39,110.9]
[1759867828461,1.58141396,223.42,223.39,31.7]
[1759867828672,1.58141396,223.42,223.39,31.68]
[1759867828850,2.28141396,223.42,223.39,31.68]
[1759867829359,2.28141396,223.41,223.37,0.72]
[1759867829565,1.58141396,223.39,223.34,0.72]
[1759867829863,1.58141396,223.36,223.33,31.66]
[1759867830158,1.58141396,223.43,223.35,2.30141396]
[1759867830342,0.1,223.47,223.36,36.87707736]
[1759867830541,1.58141396,223.45,223.39,1.58141396]
[1759867830799,1.58141396,223.45,223.4,32.42]
[1759867830933,1.58141396,223.45,223.4,31.7]
[1759867831137,21.6,223.47,223.41,0.72]
[1759867831464,0.1,223.47,223.44,1.58141396]
[1759867831756,0.1,223.47,223.45,0.72]
[1759867831953,0.1,223.47,223.44,31.7]
[1759867832337,1.68141396,223.47,223.42,0.72]
[1759867832537,1.58141396,223.43,223.36,0.72]
[1759867832755,1.58141396,223.41,223.37,31.72]
[1759867832950,1.58141396,223.41,223.38,0.72]
[1759867833144,3.7043608,223.46,223.39,0.72]
[1759867833343,1.58141396,223.44,223.39,0.72]
[1759867833553,2.28141396,223.44,223.39,0.72]
[1759867833764,1.58141396,223.4,223.39,0.72]
[1759867834571,1.58141396,223.4,223.38,31.72]
[1759867834775,1.58141396,223.4,223.38,32.44]
[1759867835661,1.58141396,223.39,223.38,32.44]
[1759867835974,2.28141396,223.39,223.35,31.72]
[1759867836171,1.58141396,223.36,223.35,31.72]
[1759867836377,1.58141396,223.36,223.33,0.72]
[1759867836559,1.58141396,223.36,223.34,32.44]
[1759867836755,5.1173013,223.53,223.35,2.30141396]
[1759867836756,0.7,223.45,223.35,2.30141396]
[1759867837057,0.7,223.45,223.34,31.72]
[1759867837058,0.7,223.45,223.36,2.30141396]
[1759867837256,0.7,223.45,223.37,0.72]
[1759867837257,1.58141396,223.42,223.37,0.72]
[1759867837961,1.58141396,223.41,223.38,0.72]
[1759867838359,1.58141396,223.41,223.35,1.58141396]
[1759867838562,1.58141396,223.41,223.38,0.72]
[1759867839860,20.8,223.46,223.34,33.30141396]
[1759867839861,1.58141396,223.39,223.34,0.67]
[1759867840176,1.58141396,223.38,223.36,31.72]
[1759867840380,1.58141396,223.38,223.33,0.67]
[1759867840565,1.58141396,223.37,223.34,0.67]
[1759867840951,1.58141396,223.37,223.33,31.72]
[1759867841151,1.58141396,223.37,223.34,0.67]
[1759867841349,1.58141396,223.36,223.34,0.67]
[1759867841551,1.58141396,223.35,223.31,0.67]
[1759867841780,1.58141396,223.34,223.31,0.67]
[1759867842163,1.58141396,223.34,223.32,0.67]
[1759867842366,0.69,223.36,223.32,0.67]
[1759867842367,1.58141396,223.35,223.32,0.67]
[1759867843880,0.69,223.38,223.32,0.67]
[1759867844073,1.58141396,223.35,223.32,0.67]
[1759867844377,1.58141396,223.34,223.24,19.72325531]
[1759867844582,1.58141396,223.31,223.28,0.67]
[1759867845379,1.58141396,223.32,223.28,0.67]
[1759867845575,1.58141396,223.33,223.28,0.67]
[1759867845757,2.27141396,223.33,223.28,0.67]
[1759867846986,1.58141396,223.32,223.28,0.67]
[1759867848982,2.30141396,223.32,223.28,0.67]
[1759867850282,1.58141396,223.32,223.26,33.28141396]
[1759867850473,1.58141396,223.32,223.29,0.69]
[1759867851277,1.58141396,223.33,223.29,0.69]
[1759867851485,2.30141396,223.33,223.29,0.69]
[1759867851692,2.30141396,223.33,223.27,0.69]
[1759867853674,1.58141396,223.32,223.27,0.69]
[1759867853873,0.72,223.33,223.28,1.58141396]
[1759867854080,1.58141396,223.34,223.28,2.27141396]
[1759867854270,0.72,223.33,223.28,2.27141396]
[1759867854584,0.72,223.32,223.28,2.27141396]
[1759867855580,1.58141396,223.34,223.28,2.27141396]
[1759867855581,1.58141396,223.34,223.28,1.58141396]
[1759867855883,0.72,223.33,223.28,1.58141396]
[1759867856080,0.72,223.32,223.28,1.58141396]
[1759867856459,0.72,223.32,223.28,2.27141396]
[1759867856671,0.72,223.34,223.28,2.27141396]
[1759867857289,0.72,223.33,223.28,0.69]
[1759867857598,0.72,223.33,223.28,2.27141396]
[1759867857969,0.72,223.33,223.29,0.69]
[1759867860389,0.72,223.32,223.27,1.58141396]
[1759867860584,0.72,223.32,223.27,2.27141396]
[1759867860820,0.72,223.32,223.28,0.69]
[1759867861174,1.58141396,223.34,223.26,31.7]
[1759867861496,0.72,223.33,223.27,1.58141396]
[1759867861697,2.30141396,223.33,223.28,0.69]
[1759867861993,0.72,223.32,223.28,0.69]
[1759867862303,1.58141396,223.32,223.26,31.7]
[1759867862480,0.72,223.31,223.25,2.27141396]
[1759867862677,0.72,223.33,223.27,1.58141396]
[1759867862904,0.72,223.33,223.27,0.69]
[1759867863199,0.72,223.33,223.27,2.27141396]
[1759867863997,1.58141396,223.28,223.25,0.69]
[1759867864201,1.58141396,223.28,223.11,131.9]
[1759867864202,0.72,223.27,223.17,3.64865405]
[1759867864400,0.72,223.32,223.25,1.58141396]
[1759867864591,0.72,223.31,223.26,2.27141396]
[1759867864794,0.72,223.3,223.26,0.69]
[1759867865001,0.72,223.29,223.23,32.37]
[1759867865192,0.72,223.29,223.24,0.69]
[1759867865399,0.72,223.29,223.25,0.69]
[1759867865599,0.72,223.28,223.23,31.68]
[1759867865900,0.72,223.28,223.24,0.69]
[1759867866711,0.72,223.27,223.23,31.68]
[1759867867000,1.58141396,223.27,223.22,32.37]
[1759867867210,0.72,223.26,223.22,32.37]
[1759867867704,0.72,223.26,223.22,0.69]
[1759867867902,3.1925076,223.29,223.23,3.1625076]
[1759867868099,2.4725076,223.28,223.23,0.69]
[1759867868502,0.72,223.27,223.23,0.69]
[1759867870220,3.00605628,223.32,223.21,32.37]
[1759867870221,3.1925076,223.26,223.21,32.37]
[1759867870711,0.72,223.26,223.21,32.37]
[1759867870895,2.4725076,223.27,223.22,0.69]
[1759867871402,3.1925076,223.27,223.22,0.69]
[1759867871603,0.72,223.26,223.22,0.69]
[1759867871991,2.4725076,223.27,223.21,31.68]
[1759867872191,3.1925076,223.27,223.22,0.69]
[1759867872503,0.72,223.26,223.22,0.69]
[1759867872713,21.52,223.31,223.24,2.4725076]
[1759867872912,0.72,223.31,223.27,2.4725076]
[1759867873097,2.4725076,223.35,223.29,2.4725076]
[1759867873286,2.4725076,223.35,223.27,31.68]
[1759867873287,3.1925076,223.36,223.3,3.1625076]
[1759867873612,0.72,223.35,223.3,3.1625076]
[1759867873910,0.72,223.35,223.31,3.1625076]
[1759867874105,0.72,223.35,223.31,0.69]
[1759867874490,0.72,223.34,223.29,2.4725076]
[1759867874709,2.4725076,223.3,223.24,2.4725076]
[1759867874885,3.1925076,223.29,223.22,2.4725076]
[1759867875216,2.4725076,223.27,223.21,32.37]
[1759867875512,2.4725076,223.27,223.21,34.8425076]
[1759867876683,2.4725076,223.26,223.21,32.37]
[1759867876889,3.1725076,223.26,223.21,0.69]
[1759867877705,3.1725076,223.26,223.21,0.71]
[1759867879006,0.7,223.26,223.21,0.71]
[1759867879205,3.1725076,223.26,223.21,0.71]
[1759867879808,2.4725076,223.26,223.21,0.71]
[1759867880008,0.7,223.25,223.21,0.71]
[1759867880315,2.4725076,223.26,223.21,0.71]
[1759867880506,3.1725076,223.26,223.21,0.71]
[1759867881406,0.7,223.26,223.21,3.1825076]
[1759867882531,0.7,223.26,223.21,32.39]
[1759867882726,0.7,223.26,223.22,0.71]
[1759867883617,2.4725076,223.27,223.23,0.71]
[1759867883820,2.4725076,223.28,223.23,0.71]
[1759867884137,0.7,223.27,223.21,34.8625076]
[1759867885004,0.7,223.27,223.22,0.71]
[1759867885205,0.7,223.26,223.22,0.71]
[1759867886434,21.5,223.31,223.25,2.4725076]
[1759867886604,0.7,223.31,223.26,2.4725076]
[1759867886810,0.7,223.31,223.27,2.4725076]
[1759867887029,0.7,223.31,223.26,0.71]
[1759867887322,0.7,223.31,223.27,0.71]
[1759867887628,0.7,223.3,223.26,2.4725076]
[1759867887826,0.7,223.3,223.26,3.1825076]
[1759867889027,3.01061429,223.34,223.26,3.1825076]
[1759867889325,3.1725076,223.32,223.26,3.1825076]
[1759867889628,0.7,223.31,223.26,3.1825076]
[1759867889923,0.7,223.3,223.26,3.1825076]
[1759867890226,3.1725076,223.32,223.26,3.1825076]
[1759867890615,0.7,223.31,223.26,3.1825076]
[1759867891433,3.01061429,223.34,223.27,0.71]
[1759867891639,3.1725076,223.36,223.3,2.4725076]
[1759867891821,3.71186272,223.36,223.31,3.1825076]
[1759867892028,0.7,223.35,223.32,2.4725076]
[1759867892213,0.7,223.35,223.31,3.1825076]
[1759867892821,23.9725076,223.37,223.31,3.1825076]
[1759867893306,0.7,223.36,223.31,3.1825076]
[1759867893605,0.7,223.35,223.31,3.1825076]
[1759867894018,0.7,223.35,223.31,0.71]
[1759867894215,0.7,223.35,223.31,3.1825076]
[1759867895114,0.7,223.35,223.31,0.71]
[1759867895428,3.1725076,223.34,223.27,0.71]
[1759867895636,3.1725076,223.34,223.27,3.1825076]
[1759867895931,3.1725076,223.34,223.28,2.4725076]
[1759867896130,3.1725076,223.34,223.27,0.71]
[1759867896305,2.4725076,223.33,223.27,3.1825076]
[1759867896916,2.4725076,223.33,223.27,0.71]
[1759867897239,3.1725076,223.33,223.27,0.71]
[1759867897420,3.1725076,223.33,223.27,3.1825076]
[1759867898135,29.25912828,223.4,223.27,3.1825076]
[1759867898136,19.08265307,223.4,223.32,2.4725076]
[1759867898309,19.08265307,223.4,223.27,10.87647521]
[1759867898310,18.38265307,223.4,223.39,2.4725076]
[1759867898629,18.38265307,223.4,223.35,0.71]
[1759867898826,0.7,223.39,223.34,2.4725076]
[1759867899027,0.66,223.38,223.34,2.4725076]
[1759867899336,0.66,223.37,223.33,2.4725076]
[1759867899510,3.1325076,223.39,223.33,3.1725076]
[1759867899715,3.1325076,223.39,223.34,0.7]
[1759867899922,20.85516067,223.4,223.34,3.1725076]
[1759867900231,0.66,223.39,223.34,3.1725076]
[1759867900432,0.66,223.38,223.34,3.1725076]
[1759867900621,0.66,223.38,223.34,0.7]
[1759867901938,0.66,223.38,223.34,3.1725076]
[1759867903048,20.85516067,223.4,223.33,2.4725076]
[1759867903049,0.66,223.37,223.33,2.4725076]
[1759867903226,0.66,223.37,223.33,3.1725076]
[1759867903714,0.66,223.37,223.33,0.7]
[1759867903911,2.4725076,223.35,223.29,2.4725076]
[1759867904114,18.38265307,223.4,223.28,2.4725076]
[1759867904115,3.1325076,223.34,223.28,2.4725076]
[1759867904527,0.66,223.34,223.28,2.4725076]
[1759867904734,3.1325076,223.34,223.28,3.1725076]
[1759867904942,2.4725076,223.32,223.26,3.1725076]
[1759867905123,3.1325076,223.32,223.26,3.1725076]
[1759867905323,0.66,223.32,223.26,3.1725076]
[1759867905930,0.66,223.32,223.27,3.1725076]
[1759867906146,0.66,223.32,223.28,0.7]
[1759867908732,2.4725076,223.33,223.27,2.4725076]
[1759867908923,0.69,223.32,223.27,2.4725076]
[1759867909123,0.69,223.32,223.27,3.1425076]
[1759867909625,0.69,223.32,223.28,0.67]
[1759867909834,0.69,223.31,223.26,0.67]
[1759867910150,3.1625076,223.3,223.24,0.67]
[1759867910319,0.69,223.3,223.24,3.1425076]
[1759867912839,2.4725076,223.3,223.24,3.1425076]
[1759867913036,0.69,223.29,223.24,3.1425076]
[1759867913220,2.4725076,223.3,223.24,3.1425076]
[1759867913422,0.69,223.29,223.24,3.1425076]
[1759867913618,0.69,223.29,223.25,0.67]
[1759867914249,0.69,223.28,223.23,2.4725076]
[1759867914419,0.69,223.27,223.23,2.4725076]
[1759867914622,0.69,223.27,223.23,3.1425076]
[1759867914822,2.4725076,223.29,223.23,2.4725076]
[1759867915033,0.69,223.29,223.23,3.1425076]
[1759867915333,0.69,223.29,223.24,2.4725076]
[1759867915948,0.69,223.28,223.24,3.1425076]
[1759867916739,0.69,223.3,223.25,0.67]
[1759867916940,0.69,223.29,223.25,3.1425076]
[1759867918947,20.8,223.32,223.25,2.4725076]
[1759867919128,34.8425076,223.31,223.25,2.4725076]
[1759867919329,0.69,223.3,223.25,2.4725076]
[1759867919548,0.69,223.29,223.25,3.1425076]
[1759867920543,0.69,223.29,223.25,0.67]
[1759867920870,0.69,223.29,223.25,3.1425076]
[1759867921056,34.8425076,223.31,223.26,0.67]
[1759867921245,0.69,223.34,223.29,2.4725076]
[1759867921448,31.68,223.33,223.29,3.1425076]
[1759867921655,0.69,223.34,223.3,2.4725076]
[1759867921949,53.17,223.34,223.3,2.4725076]
[1759867922148,20.8,223.34,223.3,2.4725076]
[1759867922445,21.49,223.34,223.31,2.4725076]
[1759867922859,20.8,223.34,223.31,3.1425076]
[1759867923033,21.49,223.34,223.3,2.4725076]
[1759867923356,20.8,223.34,223.29,3.1425076]
[1759867923553,0.69,223.33,223.28,2.4725076]
[1759867923763,0.69,223.32,223.28,3.1425076]
[1759867924253,53.17,223.34,223.29,0.67]
[1759867924439,0.69,223.33,223.29,0.67]
[1759867924747,54.9525076,223.34,223.28,2.4725076]
[1759867925066,0.69,223.32,223.28,2.4725076]
[1759867925240,0.69,223.32,223.28,3.1425076]
[1759867925955,20.8,223.31,223.28,79.2]
[1759867926169,2.4725076,223.29,223.23,0.67]
[1759867926367,0.69,223.3,223.25,2.4725076]
[1759867926533,0.69,223.3,223.25,3.1425076]
[1759867926870,0.69,223.29,223.25,3.1425076]
[1759867927162,0.69,223.29,223.25,0.67]
[1759867927538,0.69,223.28,223.24,4.47933781]
[1759867927739,0.69,223.28,223.24,0.67]
[1759867929245,0.69,223.28,223.24,2.25203805]
[1759867929657,32.35,223.28,223.24,6.73151585]
[1759867930343,32.35,223.28,223.25,1.58203805]
[1759867930543,31.66,223.28,223.19,31.68]
[1759867930733,36.82872091,223.28,223.24,1.58203805]
[1759867930933,36.82872091,223.28,223.23,4.47968211]
[1759867931165,36.82872091,223.28,223.24,1.58203805]
[1759867931759,36.13872091,223.28,223.24,1.58203805]